[Event "GCT Saint Louis Rapid 2018"]
[Site "Saint Louis"]
[Date "2018.08.12"]
[Round "4"]
[White "Dominguez Perez, Leinier"]
[Black "Anand, Viswanathan"]
[Result "1/2-1/2"]
[ECO "E04"]
[WhiteElo "2754"]
[BlackElo "2771"]
[Annotator "ChessBase"]
[PlyCount "74"]
[EventDate "2018.08.11"]
[EventType "tourn"]
[EventCountry "USA"]
[SourceTitle "playchess.com"]
[Source "ChessBase"]
[SourceQuality "1"]
[TimeControl "1500"]

1. d4 {[%emt 0:00:00]} Nf6 {[%emt 0:00:00]} 2. Nf3 {[%emt 0:00:00]} d5 {[%emt 0:00:00]} 3. c4 {[%emt 0:00:00]} e6 {[%emt 0:00:00]} 4. g3 {[%emt 0:00:00]} dxc4 {[%emt 0:00:00]} 5. Bg2 {[%emt 0:00:00]} c5 {[%emt 0:00:00]} 6. O-O {[%emt 0:00:00]} Nc6 {[%emt 0:00:00]} 7. dxc5 {[%emt 0:00:00]} Qxd1 {[%emt 0:00:00]} 8. Rxd1 {[%emt 0:00:00]} Bxc5 {[%emt 0:00:00]} 9. Nfd2 {[%emt 0:00:00]} Na5 {[%emt 0:00:40]} 10. Na3 {[%emt 0:00:00]} Bxa3 {[%emt 0:00:09]} 11. bxa3 {[%emt 0:00:00]} O-O {[%emt 0:00:43]} 12. Ne4 {[%emt 0:00:00]} Nxe4 {[%emt 0:01:36]} 13. Bxe4 {[%emt 0:00:00]} e5 {[%emt 0:00:00]} 14. Bb2 {[%emt 0:00:31]} Nc6 {[%emt 0:00:49]} 15. f3 {[%emt 0:02:00]} Re8 {[%emt 0:01:16]} 16. Rab1 {[%emt 0:03:50]} f6 {[%emt 0:03:43]} 17. Bc3 {[%emt 0:01:11]} Nd8 {[%emt 0:03:24]} 18. a4 {[%emt 0:04:47]} Rb8 {[%emt 0:02:20]} 19. a5 {[%emt 0:00:49]} Be6 {[%emt 0:01:15]} 20. a4 {[%emt 0:05:04]} a6 {[%emt 0:01:57]} 21. Rb6 {[%emt 0:00:29]} Bf7 {[%emt 0:00:42]} 22. Rd7 {[%emt 0:00:53]} Be6 {[%emt 0:00:54]} 23. Rc7 {[%emt 0:01:22]} Rc8 {[%emt 0:00:05]} 24. Rxc8 {[%emt 0:01:27]} Bxc8 {[%emt 0:00:00]} 25. Bd5+ {[%emt 0:00:01]} Be6 {[%emt 0:00:18]} 26. Bxb7 {[%emt 0:00:05]} Nxb7 {[%emt 0:00:00]} 27. Rxb7 {[%emt 0:00:00]} Ra8 {[%emt 0:00:20]} 28. Kf2 {[%emt 0:00:32]} Bf7 {[%emt 0:00:00]} 29. Rc7 {[%emt 0:00:07]} Be8 {[%emt 0:00:00]} 30. Rxc4 {[%emt 0:00:03]} Bd7 {[%emt 0:00:00]} 31. Rb4 {[%emt 0:00:32]} Rc8 {[%emt 0:00:27]} 32. Bd2 {[%emt 0:00:00]} Rc2 {[%emt 0:00:46]} 33. Ke1 {[%emt 0:00:00]} Ra2 {[%emt 0:00:00]} 34. Rb6 {[%emt 0:00:42]} Ra1+ {[%emt 0:00:00]} 35. Kf2 {[%emt 0:00:00]} Ra2 {[%emt 0:00:00]} 36. Ke1 {[%emt 0:00:19]} Ra1+ {[%emt 0:00:00]} 37. Kf2 {[%emt 0:00:00]} Ra2 {[%emt 0:00:00]} 1/2-1/2